Cogmind - Beta 16.1 @@@ ROGUE MODE // 2026.04.09 @ 13:21:04 Player: SunShine214 Result: Destroyed by Y-54 Guardian with Gatling Laser Performance ------------- Evolutions (0) 0 Regions Visited (3) 600 Robots Destroyed (34) 170 Value Destroyed (929) 929 Prototype IDs (0) 0 Alien Tech Used (0) 0 Bonus (0) 0 TOTAL SCORE: 1699 Bonus ------- None Cogmind --------- Core Integrity 0/250 Matter 20/300 Energy 99/100 System Corruption 0% Temperature Cool (18) Movement Flying (277) Ox3 Location -7/Recycling Parts ------- > --- POWER (1) -------- Subdweller Power Source > --- PROPULSION (2) --- Flight Unit Flight Unit > --- UTILITY (2) ------ Medium Storage Unit Makeshift Light Armor Plating > --- WEAPON (2) ------- Subdweller Shrapnel Launcher Hammer > --- INVENTORY (10) --- Small Storage Unit Signal Interpreter Hacking Suite Particle Gun Multitool Shrapnel Trap Peak State ------------ > --- POWER ------------ Subdweller Power Source > --- PROPULSION ------- Light Treads Light Treads > --- UTILITY ---------- Medium Storage Unit Makeshift Light Armor Plating > --- WEAPON ----------- Particle Gun Hammer > --- INVENTORY -------- Flight Unit Flight Unit Small Storage Unit Signal Interpreter Hacking Suite Grenade Launcher Multitool [Rating: 13] Favorites ----------- Power Ion Engine Engine Ion Engine Propulsion Light Treads Treads Light Treads Flight Unit Flight Unit Utility Medium Storage Unit Device Sensor Array Storage Medium Storage Unit Processor Targeting Computer Protection Makeshift Light Armor Plating Weapon Particle Gun Energy Gun Particle Gun Energy Cannon Subdweller Beam Cannon Ballistic Gun Light Assault Rifle Launcher Subdweller Shrapnel Launcher Special Weapon Mining Laser Impact Weapon Hammer Build | -11 -10 -10 -7 ------- Run | Yrd Mat Sub Rec Slots Evolved . | . . . . Power . | . . . . Propulsion . | . . . . Utility . | . . . . Weapon . | . . . . Parts Attached 26 | 7 9 10 . Power 3 | 1 1 1 . Engine 3 | 1 1 1 . Core . | . . . . Reactor . | . . . . Propulsion 7 | 2 1 4 . Treads 5 | 2 1 2 . Leg . | . . . . Wheel . | . . . . Hover . | . . . . Flight 2 | . . 2 . Utility 6 | 2 3 1 . Device 2 | 1 1 . . Storage 2 | 1 1 . . Processor 1 | . 1 . . Hackware . | . . . . Protection 1 | . . 1 . Artifact . | . . . . Weapon 10 | 2 4 4 . Energy Gun 3 | 1 2 . . Energy Cannon 1 | . . 1 . Ballistic Gun 1 | 1 . . . Ballistic Cannon . | . . . . Launcher 2 | . 1 1 . Special Weapon 2 | . 1 1 . Impact Weapon 1 | . . 1 . Slashing Weapon . | . . . . Piercing Weapon . | . . . . Special Melee Weapon . | . . . . Unidentified Prototypes . | . . . . Parts Lost 9 | . 2 7 . Power 1 | . . 1 . Propulsion 4 | . . 4 . Utility 2 | . 1 1 . Weapon 2 | . 1 1 . Highest Loss Streak 3 | . 1 3 . To Critical Strikes . | . . . . Average Backups 6 | . 6 7 5 Power . | . . . . Propulsion 2 | . 2 1 . Utility 2 | . 1 3 3 Weapon 1 | . 2 1 1 Tool/Special . | . . . . Unused Backups 3 | . 1 . 2 Power . | . . . . Propulsion 1 | . 1 . . Utility 2 | . . . 2 Weapon . | . . . . Tool/Special . | . . . . Average Slot Usage (%) 95 | . 99 92 100 Engine 12 | . 14 12 14 Treads 20 | . 28 15 . Flight 6 | . . 11 28 Device 5 | . 8 3 . Storage 14 | . 14 14 14 Processor 1 | . 4 . . Protection 4 | . . 7 14 Energy Gun 13 | . 18 9 . Energy Cannon 1 | . . 2 . Ballistic Gun 1 | . 3 . . Launcher 6 | . 3 9 14 Special Weapon 1 | . 2 . . Impact Weapon 3 | . . 5 14 Peak Build Rating 13 | 9 10 13 13 Average Rating 9 | 5 8 10 13 On Entrance 7 | . 9 9 13 Avg Prop Armor Cover (%) . | . . . . Naked Turns . | . . . . Heaviest Build 30 | 11 22 30 29 Greatest Support 40 | 40 40 40 8 Greatest Overweight (x) 9 | . . 9 3 Average Overweight (x) . | . . 1 3 Largest Inventory Capacity 10 | 8 10 10 10 Average Capacity 9 | 7 8 10 10 Most Carried 10 | 2 10 10 6 Average Carried 6 | . 6 7 6 Final Capacity 10 | 8 10 10 10 Final Carried 9 | 2 9 6 6 Class Distribution -------------------- 100% | Mutant Dominant Class ---------------- Mutant | -10/Materials Mutant | -10/Subcaves Mutant | -7/Recycling Resources | -11 -10 -10 -7 ----------- Run | Yrd Mat Sub Rec Matter Collected 665 | 285 195 185 . Remotely . | . . . . Salvage Created 864 | 114 519 231 . Parts 52 | 10 25 17 . Haulers Intercepted 1 | . 1 . . Recyclers Shooed 1 | 1 . . . Parts Field Recycled . | . . . . Retrieved Matter . | . . . . Parts Self-Destructed 2 | . . 2 . Prevented . | . . . . Parts Restored . | . . . . Kills | -11 -10 -10 -7 ------- Run | Yrd Mat Sub Rec Combat Hostiles Destroyed 25 | . 13 12 . Guns 7 | . 6 1 . Cannons 1 | . . 1 . AOE 17 | . 7 10 . Classes Destroyed 9 | 2 5 2 . Tunneler 2 | 2 . . . Hauler 1 | . 1 . . Recycler 1 | 1 . . . Operator 2 | . 2 . . Turret 2 | . . 2 . Watcher 1 | . 1 . . Swarmer 7 | . 3 4 . Grunt 10 | . 10 . . Subdweller 8 | . . 8 . Best Kill Streak 6 | 3 4 6 . Combat Bots Only 6 | . 3 6 . Max Kills in Single Turn 2 | 1 2 2 . Gunslinging . | . . . . Exploded 2 | . 2 2 . Melee . | . . . . Uniques/NPCs Destroyed . | . . . . Combat | -11 -10 -10 -7 -------- Run | Yrd Mat Sub Rec Hostile Shots Fired 206 | . 39 146 21 Missed 58 | . 6 48 4 Hits 148 | . 33 98 17 Projectile 148 | . 33 98 17 AOE 2 | . . 2 . Critical Strikes 1 | . . 1 . Damage Taken 1581 | . 388 1059 134 Core 252 | . 48 172 32 Absorbed by Shields . | . . . . Core Remaining (%) 100 | 100 . . . Volleys Fired 92 | 15 41 36 . Largest 2 | 2 2 2 . Hottest 165 | 60 165 110 . Shots Fired 156 | 26 82 48 . Gun 111 | 26 75 10 . Cannon 11 | . . 11 . Launcher 30 | . 5 25 . Special 4 | . 2 2 . Kinetic 49 | 15 28 6 . Thermal 77 | 11 43 23 . Explosive 24 | . 5 19 . Electromagnetic 6 | . 6 . . Robot Hit Streak 22 | 3 22 5 . Robot Miss Streak 3 | 2 2 3 . Penetration Max . | . . . . Secondary Targets . | . . . . Shots Hit Robots 102 | 15 55 29 3 Core Hits 60 | 6 28 24 2 Critical Kills . | . . . . Critical Parts Destroyed . | . . . . Critical Strikes 2 | . 2 . . Burn 2 | . 2 . . Melee Attacks 13 | . . 10 3 Impact 13 | . . 10 3 Slashing . | . . . . Piercing . | . . . . Sneak Attacks 1 | . . . 1 Combat Hostiles . | . . . . Follow-up Attacks . | . . . . Damage Inflicted 2559 | 142 955 1396 66 Guns 772 | 142 544 86 . Cannons 108 | . . 108 . Explosions 1597 | . 395 1202 . Melee 66 | . . . 66 Ramming 16 | . 16 . . Kinetic 751 | 78 175 498 . Thermal 570 | 64 312 194 . Explosive 1099 | . 395 704 . Electromagnetic 57 | . 57 . . Impact 66 | . . . 66 Slashing . | . . . . Piercing . | . . . . Highest Corruption . | . . . . Average Corruption . | . . . . Corruption Purged . | . . . . Corruption Blocked . | . . . . Overload Shots . | . . . . Overflow Damage 89 | . 26 63 . Projectiles 6 | . . 6 . Explosions 83 | . 26 57 . Melee . | . . . . Knockbacks . | . . . . Impact . | . . . . Kinetic . | . . . . Secondary . | . . . . Self-Inflicted Damage 100 | . 10 90 . Shots 6 | . 1 5 . Rammed 4 | . 4 . . Targets Rammed 5 | . 5 . . Kicked . | . . . . Crushed 1 | . 1 . . Highest Temperature 144 | 40 144 28 2 Average Temperature 42 | 21 50 9 2 Received Heat Transfer 570 | . 180 348 42 Siege Activations . | . . . . Martial Activations . | . . . . Shielding Activations . | . . . . Robots Disrupted . | . . . . Combat Hostiles . | . . . . Robots Corrupted . | . . . . Combat Hostiles . | . . . . Parts Fried . | . . . . Impact Corruptions . | . . . . Robots Melted . | . . . . Combat Hostiles . | . . . . Parts Melted 1 | . 1 . . Heat Transferred 1402 | 150 882 370 . Parts Sabotaged . | . . . . Parts Stolen . | . . . . Parts Stripped . | . . . . Power Chain Reactions . | . . . . Alert | -11 -10 -10 -7 ------- Run | Yrd Mat Sub Rec Maximum Alert Level . | . . . . Low Security (%) 100 | 100 100 . 100 Level 1 . | . . . . Level 2 . | . . . . Level 3 . | . . . . Level 4 . | . . . . Level 5 . | . . . . High Security . | . . . . Max Security . | . . . . Peak Influence 116 | 5 116 . . Initial . | . . . . Average 27 | 1 30 . . Influence Increases 751 | 15 421 315 . Destroy 0b10 Robot/C 380 | . 260 120 . Destroy 0b10 Robot/NC 35 | 15 20 . . Destroy Leader 64 | . 64 . . Successful Hack 5 | . 5 . . Disable Machine 45 | . 45 . . Destroy Structure 27 | . 27 . . Lose Combat Pursuer 195 | . . 195 . Influence Decreases 751 | 15 392 344 . Entered New Map 15 | . . 15 . Time Decay 666 | 15 382 269 . Lost Part 70 | . 10 60 . Squads Dispatched 2 | . 2 . . Investigation . | . . . . Extermination . | . . . . Reinforcement 2 | . 2 . . Assault . | . . . . Garrison . | . . . . Intercept . | . . . . Searches Triggered . | . . . . Construction Impeded . | . . . . Haulers Reinforced . | . . . . Active Scanning Responses . | . . . . Cargo Convoy Interrupts . | . . . . Stealth | -11 -10 -10 -7 --------- Run | Yrd Mat Sub Rec Distress Signals 2 | . 2 . . Communications Jammed . | . . . . Distress Signals . | . . . . Times Spotted 51 | . 24 26 1 Peak Tracking Total 6 | . 4 6 1 Tactical Retreats 4 | . . 4 . Traps | -11 -10 -10 -7 ------- Run | Yrd Mat Sub Rec Traps Triggered 3 | . . 3 . Indirectly . | . . . . Trap Hack Attempts . | . . . . Triggered . | . . . . Disarmed . | . . . . Reprogrammed . | . . . . Reused . | . . . . Traps Extracted . | . . . . Installed . | . . . . Triggered . | . . . . Most Traps Carried 1 | . . 1 1 Machines | -11 -10 -10 -7 ---------- Run | Yrd Mat Sub Rec Machines Disabled 8 | . 4 4 . Max in Single Turn 2 | . 2 2 . Machines Repaired . | . . . . Machines Dismantled . | . . . . Machines Sabotaged . | . . . . Overloaded Fab Kills . | . . . . Hacking | -11 -10 -10 -7 --------- Run | Yrd Mat Sub Rec Machines Accessed 8 | . 7 1 . Terminals 6 | . 6 . . Fabricators . | . . . . Repair Stations . | . . . . Recycling Units 1 | . 1 . . Scanalyzers . | . . . . Garrison Access . | . . . . Total Hacks 19 | . 15 4 . Successful 11 | . 7 4 . Failed 8 | . 8 . . Catastrophic 3 | . 3 . . Database Lockouts . | . . . . Manual . | . . . . Terminals 12 | . 12 . . Fabricators . | . . . . Repair Stations . | . . . . Recycling Units 3 | . 3 . . Scanalyzers . | . . . . Garrison Access . | . . . . Terminal Hacks 10 | . 6 4 . Record 4 | . . 4 . Robot Analysis 1 | . 1 . . Alert Level 1 | . 1 . . Surveillance Status 1 | . 1 . . Registered Components 1 | . 1 . . Zone Layout 2 | . 2 . . Fabricator Hacks . | . . . . Repair Station Hacks . | . . . . Recycling Unit Hacks 1 | . 1 . . Retrieve Components 1 | . 1 . . Scanalyzer . | . . . . Garrison Access Hacks . | . . . . Unauthorized Hacks . | . . . . Terminals . | . . . . Fabricators . | . . . . Repair Stations . | . . . . Recycling Units . | . . . . Scanalyzers . | . . . . Garrison Access . | . . . . Data Cores Recovered . | . . . . Used . | . . . . Hacking Detections 5 | . 5 . . Full Trace Events . | . . . . Feedback Events . | . . . . Feedback Blocked . | . . . . Robot Schematics Acquired . | . . . . Robots Built . | . . . . Authchips . | . . . . Time . | . . . . Total Robot Build Rating . | . . . . Part Schematics Acquired . | . . . . Parts Built . | . . . . Authchips . | . . . . Time . | . . . . Total Part Build Rating . | . . . . Part Studies Acquired . | . . . . Parts Repaired . | . . . . Time . | . . . . Parts Recycled . | . . . . Recycled Matter . | . . . . Retrieved Matter . | . . . . Retrieved Components 1 | . 1 . . Parts Scanalyzed . | . . . . Part Schematics Acquired . | . . . . Parts Damaged . | . . . . Bothacking | -11 -10 -10 -7 ------------ Run | Yrd Mat Sub Rec Used RIF Installer . | . . . . Robots Hacked . | . . . . Non-combat . | . . . . Combat . | . . . . Robot Hacks Applied . | . . . . Relay Couplers Released . | . . . . Fabnet Peak Effective % . | . . . . Robots Rewired . | . . . . Allies Hacked . | . . . . Hacks Repelled . | . . . . Allies | -11 -10 -10 -7 -------- Run | Yrd Mat Sub Rec Total Allies . | . . . . Largest Group . | . . . . Highest-Rated Group . | . . . . Highest-Rated Ally . | . . . . Total Orders . | . . . . Ally Attacks . | . . . . Total Damage . | . . . . Kills . | . . . . Allies Corrupted . | . . . . Allies Melted . | . . . . Intel | -11 -10 -10 -7 ------- Run | Yrd Mat Sub Rec Active Infowar (turns) 1215 | 33 789 393 . Sensors 833 | . 440 393 . Terrain 382 | 33 349 . . Robot Analysis Total 1 | . 1 . . Derelict Logs Recovered 1 | . . 1 . Drone Launches . | . . . . Drone Recoveries . | . . . . Exploration | -11 -10 -10 -7 ------------- Run | Yrd Mat Sub Rec Turns Passed 2948 | 124 1254 1560 10 Spaces Moved 1395 | 50 648 696 1 Core 14 | 5 . 9 . Treads 1153 | 45 648 460 . Legs . | . . . . Wheels . | . . . . Hover . | . . . . Flight 228 | . . 227 1 Fastest Speed 50 | 50 160 160 277 Average Speed 180 | 149 160 202 277 Slowest Speed 500 | 160 160 500 277 Overloaded Moves . | . . . . Propulsion Burnouts . | . . . . Robots Hopped . | . . . . Potential Cave-ins . | . . . . Cave-ins Triggered . | . . . . Exploration Rate (%) 34 | 3 95 37 2 Regions Visited 3 Branch Regions 2 Pre-discovered Areas 1 | . . 1 . Known Exits Taken . | . . . . Unknown Exits Taken 3 | 1 1 1 . Scrap Searched 2 | . . 2 . Spaces Dug . | . . . . Terrain Destroyed 167 | . 25 142 . Melee . | . . . . Projectile 3 | . . 3 . AOE 164 | . 25 139 . Terrain Rammed . | . . . . Walls Destroyed . | . . . . Machines Disabled . | . . . . Actions | -11 -10 -10 -7 --------- Run | Yrd Mat Sub Rec Total 1632 | 73 780 775 4 Wait 70 | . 58 12 . Move 1392 | 49 647 695 1 Hop . | . . . . Pick Up 15 | 2 10 3 . Fast Attach 10 | 7 1 2 . Attach 8 | . 2 6 . Detach 2 | . 1 1 . Swap 19 | . 10 9 . Drop 6 | . 5 1 . Fire 92 | 15 41 36 . Melee 13 | . . 10 3 Ram . | . . . . Kick . | . . . . Crush 5 | . 5 . . Escape Stasis . | . . . . Rewire . | . . . . Trap . | . . . . Miscellaneous . | . . . . Route ------- -11/Scrapyard -10/Materials (discovered 5 exits: [*Mat x3] / [*Min] / *Sub) -10/Subcaves -7/Recycling History --------- Turn | Location | Event 3 | -11/Scrapyard | Discovered new exit (range 15) 125 | -11/Scrapyard | Entered Materials 218 | -10/Materials | Discovered new exit (range 12) 316 | -10/Materials | Build established: Mutant 488 | -10/Materials | Discovered new exit (range 11) 629 | -10/Materials | Discovered new exit (range 15) 1055 | -10/Materials | Discovered new exit (range 15) 1369 | -10/Materials | Discovered new exit (range 6) 1379 | -10/Materials | Entered Subcaves 1380 | -10/Subcaves | Approached by a straggling Scientist 1559 | -10/Subcaves | Shifting Twisted Machinery released Sub. Beam Cannon 1573 | -10/Subcaves | Shifting Twisted Machinery released Multitool 1579 | -10/Subcaves | Shifting Twisted Machinery released Shrapnel Trap 1831 | -10/Subcaves | Learned 2 Materials zone layouts 1837 | -10/Subcaves | Discovered new exit (range 11) 1851 | -10/Subcaves | Ambushed by Subdweller buried in earth 1868 | -10/Subcaves | Core integrity fell below 50% 1925 | -10/Subcaves | Lost 3 parts (1p2n) 2038 | -10/Subcaves | Visited Clippyterm 2042 | -10/Subcaves | Learned Factory fabricator intel 2107 | -10/Subcaves | Shifting Twisted Machinery released Sub. Power Source 2113 | -10/Subcaves | Shifting Twisted Machinery released Mak. Light Armor Plating 2149 | -10/Subcaves | Learned location of Zion (-7) 2149 | -10/Subcaves | Met a Zionite searching for "candidates" 2227 | -10/Subcaves | Ambushed by Subdweller buried in earth 2232 | -10/Subcaves | Ambushed by Subdweller buried in earth 2232 | -10/Subcaves | Ambushed by Subdweller buried in earth 2247 | -10/Subcaves | Core integrity fell below 20% 2269 | -10/Subcaves | Lost 3 parts (2n1w) 2939 | -10/Subcaves | Entered Recycling 2949 | -7/Recycling | Destroyed by Y-54 Guardian with Gatling Laser Last Messages --------------- Plating. N9-6PG(c): "I think it's somewhere southwest of here" 02421_ UI-1TZ(u) tweaks Twisted Machinery. N9-6PG(c): "I think it's somewhere southwest of here" 02489_ Sub. Power Source shoots sparks and powers down. N9-6PG(c): "I think it's somewhere southwest of here" 02513_ UI-1TZ(u) tweaks Twisted Machinery. N9-6PG(c): "I think it's somewhere southwest of here" 02897_ Acquired Shrapnel Trap. N9-6PG(c): "I think it's somewhere southwest of here" LOCATION=UNKNOWN GOAL=ESCAPE 02942_ Sneak attack on Y-54 Guardian. 02943_ Y-54 Guardian springs to life. Map ----- +----------------------------------------------------+ | | | | | ?????????????????????????????? | | ?????????????????????????????? | | ?????????????????????????????? | | ?????????????????????????????? | | ?????????????????????????????? | | ?????????????????????????????? | | ?????????????????????????????? | | ?????????????????????????????? | | ?????????????????????????????? | | ?????????????????????????????? | | ?????????????????????????????? | | ?????????????????????????????? | | ?????????????????????????????? | | ?????????????????????????????? | | ?????????????????????????????? | | ?????????????????????????????? | | ?????????????????????????????? | | ?????????????????????????????? | | ?????????????????????????????? | | ?????????????????????????????? | | ??#####??????????????????????? | | ??# #??????????????????????? | | ??# #??????????????????????? | | ??# @#??????????????????????? | | ??# Y#?????????????????????? | | ?"" ##?????????????????????? | | #"Y #??????????????????????? | | #"" #??????????????????????? | | ### #??????????????????????? | | ??# #??????????????????????? | | ??# #??????????????????????? | | ?? ??????????????????????? | | ?? ??????????????????????? | | ?? ??????????????????????? | | ?# ??????????????????????? | | ?# ??????????????????????? | | ?## #??????????????????????? | | ??# ???????????????????????? | | ??? ???????????????????????? | | ?????????????????????????????? | | ?????????????????????????????? | | ?????????????????????????????? | | ?????????????????????????????? | | ?????????????????????????????? | | ?????????????????????????????? | | ?????????????????????????????? | | ?????????????????????????????? | | ?????????????????????????????? | +----------------------------------------------------+ Best States ------------- Heat Dissipation 25 Energy Generation 15 Energy Capacity 250 Matter Stores 300 Matter Capacity 300 Sight Range 16 Robot Scan Range 14 Terrain Scan Range 16 Terrain Scan Density 10 Armor Coverage 100 Evasion (%) 40 Targeting Accuracy 5 Recoil Reduction 2 Item Schematics ----------------- None Robot Schematics ------------------ None Fabricated ------------ Nothing Repaired ---------- Nothing Studied --------- None Alien Tech Used ----------------- None Achievements -------------- None Challenges ------------ None Game ------ Seed ThermoelectricFusionTether Manual? 0 Play Time 00:15:16 Cumulative 125.2 hours Start 2026.04.09 @ 12:57:35 End 2026.04.09 @ 13:21:04 Sessions 1 Manual Loads 0 Difficulty Rogue Special Mode None Game No. 190 Rogue 190 Adventurer 0 Explorer 0 Win Type - Total 1 Types 1/0/0/0/0/0/0/0/0/0 Lore% 50 Gallery% 53 Achievement% 40 Wizard Run 0 Options --------- Layout 1 ASCII 0 Keyboard 1 Movement Arrows Keybinds 0 Fullscreen 1 Font 24/Smallcaps Map View 50x35 Zoom Use 0% Tactical HUD 1 Map Filters NONE Filters NONE Steam 1 RUN: a0de2690-a360-4f26-86c0-65c05cfe3ba0